bitfinex/quotes_SOLUSD_20241019
["timestamp","ask_amount","ask_price","bid_price","bid_amount"]
[1729346554975,0.6334754,155.01,154.96,6.55298366]
[1729346556310,0.6334754,155.01,154.97,23.776884]
[1729346561992,0.6334754,155.01,154.97,6.55298366]
[1729346567488,0.6334754,155.01,154.97,9.99450068]
[1729346575495,0.6334754,155.01,154.97,3.44151702]
[1729346575697,0.6334754,155.01,154.97,7.42880326]
[1729346575898,0.6334754,155.01,154.97,13.98178692]
[1729346580707,0.6334754,155.01,154.97,17.45580045]
[1729346588812,0.6334754,155.01,154.98,23.776884]
[1729346597517,0.6334754,155.01,154.98,31.20568726]
[1729346602612,0.6334754,155.01,155.0,23.776884]
[1729346603003,0.6334754,155.01,155.0,31.60473708]
[1729346613208,0.6334754,155.01,155.0,7.82785308]
[1729346618141,0.6334754,155.01,155.0,15.25665634]
[1729346618801,0.6334754,155.01,155.0,35.25665634]
[1729346624317,0.6334754,155.01,155.0,59.03354034]
[1729346633543,0.6334754,155.01,155.0,62.41183053]
[1729346636442,0.6334754,155.01,155.0,59.03354034]
[1729346636952,0.6334754,155.01,155.0,62.41452666]
[1729346643051,0.6334754,155.01,155.0,59.03354034]
[1729346643344,0.6334754,155.01,155.0,62.41905739]
[1729346644324,0.6334754,155.01,155.0,59.03354034]
[1729346644525,0.6334754,155.01,155.0,62.41970052]
[1729346646845,0.6334754,155.01,155.0,63.70951018]
[1729346647049,0.0652425,155.01,155.0,68.97268418]
[1729346649150,0.0652425,155.01,155.0,72.49148631]
[1729346650847,1e-08,155.01,155.0,58.50969939]
[1729346651043,21.6463,155.1,155.02,23.776884]
[1729346651358,21.6463,155.1,155.04,23.776884]
[1729346651758,21.6463,155.1,155.03,23.776884]
[1729346652055,21.6463,155.1,155.04,3.38638731]
[1729346652238,21.6463,155.1,155.04,3.3862451]
[1729346652628,21.6463,155.1,155.05,3.3862451]
[1729346652847,21.6463,155.1,155.04,3.3862451]
[1729346653038,21.6463,155.1,155.05,3.3862451]
[1729346653238,21.6463,155.1,155.05,23.776884]
[1729346653755,21.6463,155.1,155.03,1.28947108]
[1729346653756,15.5234,155.1,155.04,23.776884]
[1729346654051,15.5234,155.1,155.06,23.776884]
[1729346655848,21.1635,155.14,155.06,23.776884]
[1729346656247,21.1635,155.14,155.05,23.776884]
[1729346659642,44.940384,155.11,155.0,7.82785308]
[1729346659955,51.387384,155.11,155.01,3.38452772]
[1729346660338,44.940384,155.11,155.02,3.38452772]
[1729346660552,44.940384,155.11,155.01,3.38452772]
[1729346662446,44.940384,155.11,155.02,3.38452772]
[1729346662754,21.1635,155.11,155.01,3.38452772]
[1729346662964,21.1635,155.11,155.02,3.38452772]
[1729346663146,21.1635,155.11,155.01,3.38452772]
[1729346663348,21.1635,155.11,155.02,3.38452772]
[1729346663552,21.1635,155.11,155.01,3.38452772]
[1729346663761,21.1635,155.11,155.02,3.38452772]
[1729346664056,21.1635,155.11,155.02,23.776884]
[1729346664362,21.1635,155.11,155.04,23.776884]
[1729346664849,21.1635,155.11,155.03,23.776884]
[1729346665041,21.1635,155.11,155.04,3.38374865]
[1729346665236,21.1635,155.11,155.03,23.776884]
[1729346665559,21.1635,155.11,155.04,3.38337404]
[1729346665754,21.1635,155.11,155.03,23.776884]
[1729346666068,21.1635,155.11,155.04,3.38358609]
[1729346666362,21.1635,155.11,155.03,3.38358609]
[1729346666561,21.1635,155.11,155.04,3.38358609]
[1729346666766,23.776884,155.1,154.95,15.0087]
[1729346667058,23.776884,155.08,154.95,15.0087]
[1729346667439,23.776884,155.08,154.96,20.26464042]
[1729346668565,23.776884,155.08,154.97,7.01892608]
[1729346668740,21.6778,155.09,154.98,23.776884]
[1729346675572,23.776884,155.08,154.97,7.01892608]
[1729346675756,23.776884,155.08,154.96,23.776884]
[1729346680865,21.6778,155.09,154.96,23.776884]
[1729346681053,21.6778,155.09,154.96,36.69879374]
[1729346681253,21.6778,155.09,154.98,23.776884]
[1729346690876,21.6778,155.09,154.98,7.47221867]
[1729346696996,21.6778,155.09,154.99,23.776884]
[1729346701582,21.6778,155.09,155.0,16.2877]
[1729346702785,8.90072004,155.11,155.01,23.776884]
[1729346703286,8.90072004,155.11,155.0,23.75991867]
[1729346707389,8.90072004,155.11,155.01,23.776884]
[1729346709093,8.90072004,155.11,155.01,37.64810267]
[1729346710881,8.90072004,155.11,155.04,16.2877]
[1729346711684,21.989,155.13,155.04,16.2877]
[1729346724096,21.989,155.13,155.05,23.776884]
[1729346724883,6.73184847,155.15,155.05,23.776884]
[1729346734589,6.73184847,155.15,155.05,31.24910267]
[1729346753497,6.73184847,155.15,155.05,7.47221867]
[1729346756601,23.776884,155.14,155.05,7.47221867]
[1729346756814,23.776884,155.14,155.04,16.2877]
[1729346765716,23.776884,155.12,155.04,16.2877]
[1729346765921,30.223584,155.12,155.03,7.82713584]
[1729346766832,23.776884,155.12,155.03,7.82713584]
[1729346769716,22.8519,155.13,155.03,7.82713584]
[1729346769925,16.3167,155.13,155.04,15.2348]
[1729346770110,23.776884,155.14,155.04,15.2348]
[1729346772540,30.222784,155.14,155.04,15.2348]
[1729346777238,23.776884,155.14,155.04,15.2348]
[1729346778741,30.222784,155.14,155.04,15.2348]
[1729346779032,6.4466,155.12,155.04,15.2348]
[1729346779233,23.776884,155.11,155.04,15.2348]
[1729346789337,23.776884,155.12,155.03,7.82713584]
[1729346789544,23.776884,155.1,155.03,7.82713584]
[1729346789928,23.776884,155.08,155.0,16.4672]
[1729346791652,23.776884,155.06,155.0,16.4672]
[1729346793534,23.776884,155.07,155.0,16.4672]
[1729346794250,22.8486,155.08,155.0,16.4672]
[1729346794452,23.776884,155.09,155.0,16.4672]
[1729346794656,13.17610131,155.1,155.0,16.4672]
[1729346794946,6.72830131,155.1,155.0,16.4672]
[1729346795339,13.17600131,155.1,155.0,16.4672]
[1729346795943,23.776884,155.09,155.0,16.4672]
[1729346798050,6.4486,155.08,154.97,6.0689]
[1729346798556,31.85189073,155.07,154.97,6.0689]
[1729346801569,8.07500673,155.07,154.97,6.0689]
[1729346802649,1.12142532,155.09,154.97,6.0689]
[1729346802650,7.56942532,155.09,154.97,6.0689]
[1729346802852,23.776884,155.08,154.97,6.0689]
[1729346804166,30.225084,155.08,154.97,6.0689]
[1729346804574,23.776884,155.08,154.97,6.0689]
[1729346804763,23.776884,155.06,154.97,6.0689]
[1729346807176,6.4484,155.08,154.97,6.0689]
[1729346807362,6.72830131,155.1,154.97,6.0689]
[1729346807363,13.17570131,155.1,154.98,15.0638]
[1729346807567,6.4474,155.1,154.98,15.0638]
[1729346808379,6.4481,155.09,154.98,15.0638]
[1729346808565,30.225184,155.08,154.98,15.0638]
[1729346811871,1.12126422,155.11,154.99,23.776884]
[1729346812065,7.56856422,155.11,154.99,23.776884]
[1729346812257,7.56856422,155.11,154.98,15.0638]
[1729346812258,6.4478,155.1,154.98,15.0638]
[1729346812459,6.4482,155.09,154.98,15.0638]
[1729346813263,23.776884,155.06,154.98,15.0638]
[1729346825096,23.776884,155.04,154.97,6.71998931]
[1729346825392,6.4503,155.03,154.97,6.71998931]
[1729346826287,23.776884,155.02,154.97,6.71998931]
[1729346827172,6.4512,155.01,154.89,6.1283]
[1729346827370,6.4512,155.01,154.9,16.2577]
[1729346827371,23.776884,155.0,154.9,16.2577]
[1729346827694,6.4525,154.98,154.9,16.2577]
[1729346828401,6.452,154.99,154.9,16.2577]
[1729346828777,23.776884,154.98,154.9,16.2577]
[1729346837604,23.776884,154.99,154.9,16.2577]
[1729346838899,30.228884,154.99,154.9,16.2577]
[1729346842022,23.776884,154.99,154.9,16.2577]
[1729346845716,6.4527,154.98,154.9,16.2577]
[1729346845901,30.228984,154.99,154.9,16.2577]
[1729346848198,23.776884,154.99,154.9,16.2577]
[1729346855921,23.776884,155.0,154.9,16.2577]
[1729346860309,23.776884,155.02,154.9,16.2577]
[1729346860522,15.365,155.04,154.92,21.7884]
[1729346860703,23.776884,155.03,154.92,21.7884]
[1729346880721,30.227384,155.03,154.92,21.7884]
[1729346880923,23.776884,155.01,154.92,21.7884]
[1729346883148,30.228184,155.01,154.92,15.2865]
[1729346885633,23.776884,154.99,154.91,5.532528]
[1729346889816,23.776884,155.0,154.91,5.532528]
[1729346890023,23.776884,155.0,154.92,15.9008]
[1729346896567,30.228584,155.0,154.92,15.9008]
[1729346896848,30.228584,155.0,154.91,5.532528]
[1729346897624,46.159984,155.0,154.91,5.532528]
[1729346898644,23.776884,154.98,154.91,5.532528]
[1729346898826,46.159984,155.0,154.91,5.532528]
[1729346901054,46.159984,155.0,154.88,22.0633]
[1729346901725,23.776884,155.0,154.88,22.0633]
[1729346903231,23.776884,155.0,154.89,23.776884]
[1729346903531,23.776884,155.0,154.9,16.0415]
[1729346903733,23.776884,155.01,154.9,16.0415]
[1729346904347,23.776884,155.02,154.9,16.0415]
[1729346905635,23.776884,155.01,154.9,16.0415]
[1729346912033,23.776884,155.02,154.9,16.0415]
[1729346913451,6.4507,155.02,154.9,16.0415]
[1729346913666,23.776884,155.01,154.9,16.0415]
[1729346916960,6.72462285,155.04,154.92,16.0415]
[1729346917168,13.17472285,155.04,154.92,16.0415]
[1729346917339,6.4501,155.04,154.92,16.0415]
[1729346918343,23.776884,155.03,154.92,16.0415]
[1729346919755,1.12190558,155.05,154.93,23.776884]
[1729346919963,1.12190558,155.05,154.95,6.3007]
[1729346920745,13.18115255,155.06,154.95,6.3007]
[1729346921342,23.776884,155.05,154.95,6.3007]
[1729346922155,6.73165255,155.06,154.96,23.776884]
[1729346922360,6.4487,155.07,154.96,23.776884]
[1729346923148,22.94509857,155.08,154.95,6.3007]
[1729346923347,6.4491,155.06,154.95,6.3007]
[1729346925353,6.4491,155.06,154.95,9.70110507]
[1729346931608,30.225584,155.07,154.95,9.70110507]
[1729346936890,30.225584,155.07,154.95,6.3007]
[1729346942382,6.4501,155.04,154.95,6.3007]
[1729346943968,23.776884,155.05,154.95,6.3007]
[1729346944173,30.226484,155.05,154.95,6.3007]
[1729346969121,23.776884,155.05,154.95,6.3007]
[1729346969402,6.4507,155.03,154.94,16.0415]
[1729346971075,23.776884,155.03,154.94,16.0415]
[1729346974184,23.776884,155.03,154.94,19.46138514]
[1729346975815,12.461604,155.06,154.94,19.46138514]
[1729346975986,23.776884,155.05,154.95,6.2109]
[1729346979111,12.461604,155.06,154.95,6.2109]
[1729346979814,12.461604,155.06,154.95,9.60234939]
[1729346980005,6.138604,155.06,154.95,9.60234939]
[1729346981917,6.138604,155.06,154.95,6.2109]
[1729346987599,6.138604,155.06,154.95,9.58947824]
[1729346991513,6.138604,155.06,154.97,15.2878]
[1729346997297,6.138604,155.06,154.98,23.776884]
[1729346997499,23.776884,155.09,154.98,23.776884]
[1729346997711,23.776884,155.09,154.99,6.4281]
[1729346999725,6.2334,155.1,155.0,15.2878]
[1729347004329,23.776884,155.09,155.0,15.2878]
[1729347004510,23.776884,155.07,154.97,5.4820498]
[1729347005600,30.225584,155.07,154.97,5.4820498]
[1729347012110,23.776884,155.07,154.97,5.4820498]
[1729347013423,6.72909712,155.08,154.97,5.4820498]
[1729347013825,12.681,155.1,154.97,5.4820498]
[1729347013826,23.776884,155.09,154.97,5.4820498]
[1729347026731,30.224784,155.09,154.97,5.4820498]
[1729347029445,23.776884,155.09,154.97,5.4820498]
[1729347042758,23.776884,155.09,154.98,39.586284]
[1729347044856,23.776884,155.09,154.99,6.0999]
[1729347045556,6.72936019,155.11,155.0,23.776884]
[1729347045855,6.72936019,155.11,155.01,15.8094]
[1729347054349,6.72936019,155.11,155.01,19.28401821]
[1729347056862,6.72936019,155.11,155.01,15.8094]
[1729347060047,6.4481,155.09,155.01,15.8094]
[1729347062059,36.598784,155.1,155.01,15.8094]
[1729347063845,6.3743,155.1,155.01,15.8094]
[1729347069077,12.75703567,155.11,155.01,15.8094]
[1729347069654,6.31003567,155.11,155.01,15.8094]
[1729347069863,6.31003567,155.11,155.02,23.776884]
[1729347071257,6.4462,155.13,155.03,6.0818]
[1729347071572,6.4462,155.13,155.04,15.958]
[1729347072156,6.6158,155.14,155.04,15.958]
[1729347072467,13.0616,155.14,155.04,15.958]
[1729347074973,0.6334754,155.16,155.04,15.958]
[1729347075272,30.222284,155.15,155.04,15.958]
[1729347076461,6.4462,155.13,155.04,15.958]
[1729347076683,6.4463,155.13,155.04,15.958]
[1729347110578,30.49544244,155.15,155.04,15.958]
[1729347110786,36.94114244,155.15,155.04,15.958]
[1729347111879,56.30114244,155.15,155.04,15.958]
[1729347112098,36.94114244,155.15,155.04,15.958]
[1729347127498,30.49544244,155.15,155.04,15.958]
[1729347130617,36.94084244,155.15,155.04,15.958]
[1729347131697,30.49544244,155.15,155.04,15.958]
[1729347132600,36.94084244,155.15,155.04,15.958]
[1729347133987,30.49544244,155.15,155.04,15.958]
[1729347134195,6.4458,155.14,155.04,15.958]
[1729347143826,36.94084244,155.15,155.04,15.958]
[1729347150221,6.71855844,155.15,155.04,15.958]
[1729347150426,6.71855844,155.15,155.05,23.776884]
[1729347150607,6.71855844,155.15,155.05,29.20791087]
[1729347157522,6.71855844,155.15,155.06,16.0542]
[1729347167825,6.71855844,155.15,155.07,23.776884]
[1729347169619,6.71855844,155.15,155.06,16.0542]
[1729347180742,6.36965698,155.15,155.06,16.0542]
[1729347221889,6.36965698,155.15,155.07,30.194584]
[1729347245381,0.6334754,155.16,155.07,30.194584]
[1729347255201,0.6334754,155.16,155.08,15.5808]
[1729347255415,0.6334754,155.16,155.09,23.776884]
[1729347263623,0.6334754,155.16,155.09,27.23456668]
[1729347266909,0.6334754,155.16,155.09,23.776884]
[1729347274118,0.6334754,155.16,155.09,27.21598439]
[1729347277118,0.6334754,155.16,155.09,23.776884]
[1729347282029,0.6334754,155.16,155.09,27.2685151]
[1729347287133,0.6334754,155.16,155.09,23.776884]
[1729347293649,0.6334754,155.16,155.09,27.14612151]
[1729347297548,0.6334754,155.16,155.09,28.43523425]
[1729347299655,0.6334754,155.16,155.09,27.14612151]
[1729347301950,0.6334754,155.16,155.09,23.776884]
[1729347304037,0.6334754,155.16,155.08,20.78807811]
[1729347309380,0.6334754,155.16,155.08,24.14673567]
[1729347312065,0.6334754,155.16,155.08,20.78807811]
[1729347320762,0.6334754,155.16,155.08,24.24861747]
[1729347321984,0.6334754,155.16,155.08,20.78807811]
[1729347328376,0.6334754,155.16,155.08,24.20628383]
[1729347332475,0.6334754,155.16,155.08,20.78807811]
[1729347343499,0.6334754,155.16,155.09,23.776884]
[1729347365820,0.6334754,155.16,155.09,27.16645943]
[1729347377309,0.6334754,155.16,155.11,23.776884]
[1729347377504,0.6334754,155.16,155.11,28.86115151]
[1729347378000,0.6334754,155.16,155.12,1.28898084]
[1729347378215,0.6334754,155.16,155.13,38.930884]
[1729347391043,0.6334754,155.16,155.13,42.31348595]
[1729347392112,0.6334754,155.16,155.13,38.930884]
[1729347394138,0.6334754,155.16,155.13,45.92318601]
[1729347395241,0.6334754,155.16,155.14,1.28850896]
[1729347395420,0.6334754,155.16,155.15,23.776884]
[1729347397537,6.4117,155.27,155.15,23.776884]
[1729347397538,6.4117,155.27,155.17,23.776884]
[1729347397746,6.4117,155.27,155.17,25.06494117]
[1729347399329,15.2008,155.3,155.17,32.05724318]
[1729347402121,15.2008,155.3,155.19,23.776884]
[1729347402320,15.2008,155.3,155.21,23.776884]
[1729347402631,15.2008,155.3,155.23,23.776884]
[1729347409334,6.1064,155.31,155.23,23.776884]
[1729347412929,6.1064,155.31,155.23,31.58818601]
[1729347415140,0.6334754,155.32,155.23,31.58818601]
[1729347416751,0.6334754,155.32,155.24,20.0]
[1729347417056,0.6334754,155.32,155.26,20.0]
[1729347417354,0.1334754,155.32,155.26,20.0]
[1729347421760,22.1397,155.31,155.25,5.07987899]
[1729347421976,6.4408,155.26,155.18,5.07921941]
[1729347422339,15.4949,155.24,155.18,5.07921941]
[1729347423557,15.4949,155.24,155.19,20.0]
[1729347426146,6.6448,155.27,155.19,20.0]
[1729347426554,6.6448,155.27,155.2,23.776884]
[1729347426862,21.31094483,155.28,155.21,20.0]
[1729347426863,15.4949,155.28,155.21,20.0]
[1729347427652,6.6448,155.31,155.21,20.0]
[1729347428847,6.6448,155.31,155.23,20.0]
[1729347431156,6.6448,155.31,155.24,23.776884]
[1729347431357,15.6283754,155.32,155.23,20.0]
[1729347431771,15.6283754,155.32,155.24,23.776884]
[1729347431944,15.6283754,155.32,155.25,20.0]
[1729347432472,15.6283754,155.32,155.23,20.0]
[1729347432772,15.6283754,155.32,155.24,23.776884]
[1729347432954,15.6283754,155.32,155.25,20.0]
[1729347434666,0.1334754,155.32,155.24,23.776884]
[1729347434869,0.1334754,155.32,155.25,20.0]
[1729347435075,0.1334754,155.32,155.23,20.0]
[1729347436071,15.4949,155.31,155.17,5.12473762]
[1729347436475,15.4949,155.31,155.18,5.07921941]
[1729347437382,15.4949,155.31,155.19,20.0]
[1729347437876,15.4949,155.31,155.2,23.776884]
[1729347443170,15.4949,155.31,155.19,20.0]
[1729347443663,15.4949,155.31,155.2,23.776884]
[1729347450490,36.394984,155.3,155.19,20.0]
[1729347450986,23.776884,155.27,155.18,5.07921941]
[1729347451376,30.217384,155.27,155.18,5.07921941]
[1729347453493,23.776884,155.28,155.18,5.07921941]
[1729347456012,30.216984,155.28,155.18,5.07921941]
[1729347466504,23.776884,155.28,155.18,5.07921941]
[1729347472185,23.776884,155.29,155.18,5.07921941]
[1729347498025,23.776884,155.29,155.18,8.43321783]
[1729347500716,23.776884,155.29,155.18,5.07921941]
[1729347501438,23.776884,155.29,155.18,12.68556776]
[1729347511832,6.1787,155.3,155.19,31.38323235]
[1729347512036,23.776884,155.3,155.2,15.9076]
[1729347512237,15.4949,155.31,155.2,23.51394835]
[1729347530274,15.4949,155.31,155.2,26.87130571]
[1729347532103,15.4949,155.31,155.2,23.51394835]
[1729347532282,15.4949,155.31,155.21,23.776884]
[1729347532473,15.4949,155.31,155.21,28.85824737]
[1729347540192,15.4949,155.31,155.21,5.08136337]
[1729347550095,23.776884,155.3,155.21,5.08136337]
[1729347560282,29.874984,155.3,155.21,5.08136337]
[1729347560607,36.314284,155.3,155.21,5.08136337]
[1729347562122,23.776884,155.28,155.21,5.08136337]
[1729347563815,23.776884,155.28,155.22,20.0]
[1729347566625,6.0981,155.3,155.22,20.0]
[1729347568514,23.776884,155.29,155.22,20.0]
[1729347568889,6.0981,155.3,155.22,20.0]
[1729347570218,23.776884,155.3,155.22,20.0]
[1729347572426,5.81511998,155.31,155.22,20.0]
[1729347574826,0.1334754,155.32,155.24,20.0]
[1729347591319,0.1334754,155.32,155.24,23.39361915]
[1729347592218,0.1334754,155.32,155.24,20.0]
[1729347599349,0.1334754,155.32,155.24,23.48334105]
[1729347600547,0.1334754,155.32,155.24,20.0]
[1729347600754,23.9103594,155.32,155.24,20.0]
[1729347624659,23.776884,155.3,155.21,11.25456337]
[1729347624860,23.776884,155.3,155.21,5.08136337]
[1729347625072,30.216184,155.3,155.21,5.08136337]
[1729347625264,23.776884,155.28,155.21,5.08136337]
[1729347630191,6.0216,155.29,155.21,5.08136337]
[1729347631490,23.776884,155.28,155.21,5.08136337]
[1729347653199,23.776884,155.28,155.19,15.2068]
[1729347668722,43.106884,155.28,155.2,20.0]
[1729347668892,6.4412,155.25,155.15,16.6442]
[1729347669100,30.218884,155.24,155.15,16.6442]
[1729347670301,30.218884,155.24,155.16,20.0]
[1729347671103,49.548884,155.24,155.16,20.0]
[1729347671306,23.776884,155.22,155.16,20.0]
[1729347678425,23.776884,155.22,155.14,20.0]
[1729347678616,39.950584,155.22,155.13,6.14918845]
[1729347679537,23.776884,155.2,155.13,6.14918845]
[1729347679909,39.950584,155.22,155.14,20.0]
[1729347680831,59.280584,155.22,155.14,20.0]
[1729347681531,60.40119629,155.22,155.14,20.0]
[1729347681839,66.84369629,155.22,155.14,20.0]
[1729347682271,73.55538896,155.22,155.14,20.0]
[1729347682807,73.55538896,155.22,155.13,6.14918845]
[1729347683217,46.66227667,155.22,155.14,20.0]
[1729347685638,30.48857667,155.22,155.12,20.0]
[1729347696441,36.93107667,155.22,155.12,20.0]
[1729347697043,49.81857667,155.22,155.12,20.0]
[1729347697264,23.776884,155.2,155.12,20.0]
[1729347708637,20.0,155.21,155.12,20.0]
[1729347708954,23.776884,155.2,155.12,20.0]
[1729347710747,22.27059267,155.22,155.12,20.0]
[1729347710945,23.776884,155.21,155.12,20.0]
[1729347712863,5.93241553,155.23,155.14,16.063]
[1729347725170,23.776884,155.22,155.14,16.063]
[1729347726350,43.106884,155.22,155.12,5.73415719]
[1729347726854,49.549684,155.22,155.12,5.73415719]
[1729347728172,23.776884,155.2,155.12,5.73415719]
[1729347728344,32.7499,155.19,155.1,15.3931]
[1729347728548,23.776884,155.18,155.1,15.3931]
[1729347730568,23.776884,155.18,155.06,21.4238]
[1729347730770,23.776884,155.18,155.07,3.3555137]
[1729347731774,30.221084,155.18,155.07,3.3555137]
[1729347732149,30.221084,155.18,155.06,21.4238]
[1729347732975,43.106884,155.18,155.06,15.3931]
[1729347733179,23.776884,155.16,155.06,15.3931]
[1729347733883,23.776884,155.17,155.06,15.3931]
[1729347735853,30.49143899,155.17,155.06,15.3931]
[1729347736751,36.93603899,155.17,155.06,15.3931]
[1729347738176,56.26603899,155.17,155.06,15.3931]
[1729347740570,49.82143899,155.17,155.06,15.3931]
[1729347740778,23.776884,155.15,155.06,15.3931]
[1729347741275,23.776884,155.16,155.06,15.3931]
[1729347746755,23.776884,155.14,155.06,15.3931]
[1729347760388,23.776884,155.12,155.06,15.3931]
[1729347760593,23.776884,155.14,155.06,15.3931]
[1729347770284,23.776884,155.14,155.06,21.8336]
[1729347773582,23.776884,155.14,155.06,21.8336]
[1729347798826,32.2929,155.23,155.09,15.3656]
[1729347799008,7.56329315,155.22,155.09,21.89167877]
[1729347799211,14.27608943,155.22,155.09,21.89167877]
[1729347800523,23.776884,155.21,155.09,21.89167877]
[1729347809728,7.46755722,155.22,155.11,16.1358]
[1729347810028,7.46755722,155.22,155.11,23.74214835]
[1729347810829,23.776884,155.21,155.11,23.74214835]
[1729347823347,23.776884,155.21,155.11,27.26807447]
[1729347827256,23.776884,155.21,155.11,23.74214835]
[1729347836238,23.776884,155.21,155.11,27.26807447]
[1729347842160,23.776884,155.21,155.11,23.74214835]
[1729347849249,23.776884,155.21,155.11,27.15259163]
[1729347854370,15.9776,155.24,155.12,7.60634835]
[1729347854554,23.776884,155.23,155.12,7.60634835]
[1729347857852,23.4090622,155.24,155.13,23.776884]
[1729347858058,7.4314622,155.24,155.15,6.4341]
[1729347858251,6.2533,155.27,155.15,6.4341]
[1729347858475,6.2533,155.27,155.15,14.04044835]
[1729347858476,23.776884,155.26,155.15,14.04044835]
[1729347860154,6.2533,155.27,155.16,23.776884]
[1729347860470,6.2533,155.27,155.16,31.38323235]
[1729347869704,6.2533,155.27,155.16,34.76609788]
[1729347872311,6.2533,155.27,155.16,31.38323235]
[1729347876890,6.2533,155.27,155.17,16.0247]
[1729347878994,6.2533,155.27,155.18,20.0]
[1729347886798,15.3265,155.28,155.18,20.0]
[1729347887000,15.3265,155.28,155.18,27.60634835]
[1729347888285,23.776884,155.3,155.18,27.60634835]
[1729347889695,23.776884,155.3,155.2,20.0]
[1729347902495,6.531,155.31,155.21,16.3633]
[1729347903690,0.1334754,155.32,155.22,29.887884]
[1729347918531,0.1334754,155.32,155.24,23.776884]
[1729347925414,0.1334754,155.32,155.26,23.776884]
[1729347925615,0.1334754,155.32,155.26,31.38323235]
[1729347925910,0.1334754,155.32,155.25,29.04443593]
[1729347925911,0.1334754,155.32,155.28,23.776884]
[1729347926124,0.1334754,155.32,155.29,1.28726851]
[1729347927310,0.1334754,155.32,155.3,23.776884]
[1729347927812,0.1334754,155.32,155.3,29.870884]
[1729347935439,0.1334754,155.32,155.3,37.47723235]
[1729347939343,0.1334754,155.32,155.3,31.38323235]
[1729347945935,0.1334754,155.32,155.31,25.06411456]
[1729347946134,0.1334754,155.32,155.31,32.67046291]
[1729347954620,0.1334754,155.32,155.31,48.48116291]
[1729347959533,22.0062,155.45,155.32,23.776884]
[1729347959734,22.0062,155.45,155.34,23.776884]
[1729347959940,22.0062,155.45,155.36,23.776884]
[1729347960143,22.0062,155.45,155.37,1.28657885]
[1729347960349,22.0062,155.45,155.38,23.776884]
[1729347960655,22.0062,155.45,155.39,1.28658014]
[1729347960830,22.0062,155.45,155.38,23.776884]
[1729347961031,21.5062,155.45,155.38,23.776884]
[1729347962447,21.5062,155.45,155.38,25.06346885]
[1729347967434,0.6334754,155.48,155.38,25.06346885]
[1729347967654,1.1334754,155.48,155.38,25.06346885]
[1729347968343,0.6334754,155.48,155.38,32.6698172]
[1729347968854,0.6334754,155.48,155.39,7.60634835]
[1729347969054,0.6334754,155.48,155.4,1.28648975]
[1729347977864,0.6334754,155.48,155.41,23.776884]
[1729347978365,0.6334754,155.48,155.41,40.278384]
[1729347985663,0.6334754,155.48,155.43,23.776884]
[1729347985865,0.6334754,155.48,155.43,31.58295425]
[1729347990073,0.6334754,155.48,155.45,23.776884]
[1729347991262,0.6334754,155.48,155.47,23.776884]
[1729347991461,0.6334754,155.48,155.46,1.28589419]
[1729347991683,0.6334754,155.48,155.47,23.776884]
[1729347992498,6.70536125,155.57,155.5,23.776884]
[1729347992686,0.5,155.61,155.52,23.776884]
[1729347992979,0.5,155.62,155.52,23.776884]
[1729347993181,0.6334754,155.63,155.52,23.776884]
[1729347993585,0.6334754,155.63,155.54,23.776884]
[1729347993892,20.36469919,155.68,155.54,23.776884]
[1729347994276,20.36479919,155.68,155.54,30.150284]
[1729347994759,13.94129919,155.68,155.54,30.150284]
[1729347995160,20.36469919,155.68,155.54,30.150284]
[1729347995368,6.4245,155.66,155.54,30.150284]
[1729347995586,30.201484,155.65,155.54,6.3734]
[1729347995891,23.776884,155.65,155.54,6.3734]
[1729347996682,23.776884,155.66,155.54,6.3734]
[1729347997392,30.201084,155.66,155.54,6.3734]
[1729347999892,23.776884,155.66,155.55,23.776884]
[1729348000490,30.201084,155.66,155.55,23.776884]
[1729348001798,30.201084,155.66,155.55,38.878484]
[1729348002494,30.201384,155.66,155.55,15.1016]
[1729348003788,25.201384,155.66,155.55,15.1016]
[1729348006675,18.776884,155.66,155.55,15.1016]
[1729348007289,25.201084,155.66,155.55,15.1016]
[1729348008501,6.4246,155.65,155.55,15.1016]